fUSD/lending_fUSD_20241102
["ID","MTS","AMOUNT","RATE_DAILY","PERIOD"]
[341181723,1730557508539,150.0,0.00016,2]
[341181724,1730557508560,150.0,0.00016,2]
[341181725,1730557508584,150.0,0.00016,2]
[341181726,1730557508605,150.0,0.00016,2]
[341181727,1730557508627,150.0,0.00016,2]
[341181728,1730557508648,150.0,0.00016,2]
[341181729,1730557508670,150.0,0.00016,2]
[341181730,1730557508691,150.0,0.00016,2]
[341181731,1730557508712,296.05127586,0.00016,2]
[341181732,1730557508735,6927340.95698906,0.00016,2]
[341181735,1730557530190,17635.06365065,0.000101,2]
[341181736,1730557537236,19390.68,9e-05,2]
[341181737,1730557556985,1350.0,6.94e-05,2]
[341181738,1730557563728,161.65291117,9e-05,2]
[341181739,1730557569021,900.15094453,0.0001,2]
[341181741,1730557602123,-250.0,0.00021,2]
[341181742,1730557602143,-300.0,0.00023,2]
[341181743,1730557602164,-350.0,0.00025,2]
[341181744,1730557602184,-400.0,0.00027,2]
[341181745,1730557602206,-222.78,0.00028147,2]
[341181746,1730557602226,-450.0,0.00029,2]
[341181747,1730557602246,-201.71129486,0.0003,120]
[341181748,1730557602269,-167.7535,0.0003,2]
[341181749,1730557602291,-167.7535,0.0003,2]
[341181750,1730557602311,-389.87013257,0.0003,2]
[341181751,1730557631889,646.96633381,0.000153,2]
[341181752,1730557644087,-306.32399443,0.0002,5]
[341181753,1730557644108,-583.89999999,0.00021,7]
[341181754,1730557644128,-348.04986743,0.0003,2]
[341181755,1730557644151,-1508.94,0.0003,2]
[341181756,1730557644172,-9628.31041512,0.0003,14]
[341181757,1730557644192,-500.0,0.00031,2]
[341181758,1730557644212,-4378.17807016,0.0003143,4]
[341181759,1730557644232,-550.0,0.00033,2]
[341181760,1730557644253,-679.89,0.00034277,2]
[341181761,1730557644278,-222.78,0.00034549,2]
[341181762,1730557644299,-2982.66714089,0.00035,2]
[341181763,1730557644320,-150.0,0.00035028,2]
[341181764,1730557644343,-250.0,0.00035064,2]
[341181765,1730557644362,-435.93,0.00035086,2]
[341181766,1730557644382,-63596.94314334,0.00035418,2]
[341181770,1730557679285,4205.27733224,0.00013,2]
[341181771,1730557683480,10938.26824488,0.0001,2]
[341181772,1730557684754,461.89495226,0.000145,3]
[341181773,1730557687055,4837132.85328507,0.00015,2]
[341181774,1730557705329,292.12040185,0.000125,2]
[341181776,1730557716819,366.72476236,0.000129,2]
[341181777,1730557722461,212.57615329,0.0001,2]
[341181785,1730557752653,155.78,0.00015342,2]
[341181828,1730557831924,-321.60817441,0.00018,2]
[341182057,1730557839898,-6.45859255,0.00018,2]
[341182058,1730557839907,-321.44764268,0.000299,2]
[341182059,1730557839918,-335.4158416,0.000299,2]
[341182076,1730557842697,-6001.46355,0.000299,2]
[341182079,1730557842979,-6098.33883911,0.000299,2]
[341182080,1730557843101,-1614.65862023,0.000299,2]
[341182090,1730557845843,-3387.04033167,0.000299,2]
[341182091,1730557845852,-225.90658872,0.0002999,2]
[341182092,1730557845863,-5782.86660346,0.0003,15]
[341182093,1730557845873,-681.99068726,0.0003,2]
[341182094,1730557845884,-1152.06737922,0.000335,2]
[341182095,1730557845895,-202.82,0.00034782,2]
[341182096,1730557845905,-7700.94396058,0.00035,2]
[341182097,1730557845915,-870.20477802,0.00035,7]
[341182098,1730557845924,-202.82,0.00035341,2]
[341182099,1730557845934,-165.28,0.00035464,2]
[341182100,1730557845944,-179.51,0.00035569,2]
[341182101,1730557845954,-177.46,0.000356,120]
[341182102,1730557845965,-150.99,0.00035616,2]
[341182103,1730557845975,-153.0,0.00035616,2]
[341182104,1730557845985,-153.0,0.00035616,2]
[341182105,1730557845996,-751.57,0.00035617,2]
[341182106,1730557846006,-250.0,0.00035646,120]
[341182108,1730557846017,-852.12,0.0003572,2]
[341182109,1730557846027,-13387.0,0.00035767,2]
[341182110,1730557846037,-187.27,0.00035814,120]
[341182111,1730557846047,-155.91,0.00035885,2]
[341182112,1730557846057,-202.82,0.000359,2]
[341182113,1730557846067,-155.91,0.00036004,2]
[341182114,1730557846079,-155.91,0.00036124,2]
[341182115,1730557846089,-256.0,0.00036189,2]
[341182117,1730557846099,-23900.0,0.00036192,2]
[341182119,1730557846108,-201.09,0.00036218,2]
[341182121,1730557846117,-155.91,0.00036243,2]
[341182123,1730557846128,-3034.89497363,0.0003628,2]
[341182125,1730557846137,-172.63,0.00036419,120]
[341182127,1730557846147,-202.82,0.00036459,2]
[341182129,1730557846158,-1500.75,0.00036506,2]
[341182131,1730557846168,-1500.75,0.00036526,2]
[341182133,1730557846178,-679.89,0.0003654,2]
[341182135,1730557846187,-1500.75,0.00036545,2]
[341182137,1730557846196,-1500.75,0.00036564,2]
[341182139,1730557846205,-1500.75,0.00036583,2]
[341182140,1730557846214,-1500.75,0.00036603,2]
[341182142,1730557846223,-1500.75,0.00036622,2]
[341182144,1730557846232,-1500.75,0.00036641,2]
[341182146,1730557846243,-1500.75,0.0003666,2]
[341182148,1730557846252,-1500.75,0.00036679,2]
[341182150,1730557846262,-1500.75,0.00036699,2]
[341182152,1730557846271,-201.107,0.00036707,46]
[341182154,1730557846281,-1500.75,0.00036718,2]
[341182156,1730557846290,-1500.75,0.00036737,2]
[341182158,1730557846300,-459.07,0.0003674,10]
[341182160,1730557846310,-3413.752,0.00036751,2]
[341182162,1730557846322,-1626.227,0.00036751,2]
[341182164,1730557846331,-1500.75,0.00036756,2]
[341182166,1730557846340,-1500.75,0.00036775,2]
[341182168,1730557846349,-1500.75,0.00036795,2]
[341182170,1730557846359,-1500.75,0.00036814,2]
[341182172,1730557846367,-6358.61,0.00036815,2]
[341182174,1730557846376,-1500.75,0.00036833,2]
[341182176,1730557846387,-435.93,0.0003684,2]
[341182178,1730557846397,-1500.75,0.00036852,2]
[341182180,1730557846407,-1500.75,0.00036871,2]
[341182182,1730557846416,-202.82,0.00037018,2]
[341182184,1730557846426,-322.12,0.00037061,2]
[341182186,1730557846435,-166.8,0.00037185,2]
[341182188,1730557846444,-744.0,0.00037222,2]
[341182190,1730557846454,-11130.22892912,0.00037266,120]
[341182192,1730557846463,-2795.889454,0.000375,2]
[341182194,1730557846472,-757.43278606,0.000375,15]
[341182196,1730557846481,-269.3663,0.00037571,30]
[341182198,1730557846490,-202.82,0.00037577,2]
[341182200,1730557846499,-15315.92170623,0.00037579,3]
[341182202,1730557846511,-12388.55030025,0.00037579,3]
[341182204,1730557846522,-2137.90186013,0.00037579,3]
[341182206,1730557846533,-1425.842,0.00037579,3]
[341182222,1730557846666,-18250.77304397,0.00037579,3]
[341182224,1730557846675,-97111.44607448,0.00037585,3]
[341182226,1730557846684,-795.68,0.00037589,3]
[341182228,1730557846694,-653.36561612,0.00037593,3]
[341182229,1730557846704,-9310.31872639,0.00037599,3]
[341182232,1730557846714,-10000.0,0.00037599,3]
[341182233,1730557846723,-53398.89937215,0.000376,2]
[341182235,1730557846732,-151.0,0.000376,7]
[341182237,1730557846742,-151.0,0.000376,7]
[341182239,1730557846751,-151.0,0.000376,7]
[341182242,1730557846760,-151.0,0.000376,7]
[341182244,1730557846769,-151.0,0.000376,7]
[341182246,1730557846779,-3329.61456621,0.000376,2]
[341182248,1730557846788,-151.0,0.000376,7]
[341182249,1730557846797,-400.0,0.000376,13]
[341182251,1730557846806,-151.0,0.000376,7]
[341182253,1730557846815,-521.179929,0.000376,14]
[341182255,1730557846825,-151.0,0.000376,3]
[341182257,1730557846834,-157.199704,0.000376,7]
[341182259,1730557846843,-151.0,0.000376,7]
[341182261,1730557846853,-222.668121,0.000376,7]
[341182263,1730557846862,-151.0,0.000376,7]
[341182265,1730557846871,-151.0,0.000376,7]
[341182267,1730557846880,-151.0,0.000376,7]
[341182269,1730557846889,-151.0,0.000376,7]
[341182271,1730557846899,-151.0,0.000376,7]
[341182273,1730557846909,-151.0,0.000376,7]
[341182275,1730557846918,-151.0,0.000376,7]
[341182277,1730557846927,-151.0,0.000376,7]
[341182279,1730557846937,-3711.72554769,0.000376,30]
[341182282,1730557846952,-4609.30258649,0.000376,30]
[341182284,1730557846963,-5228.97186582,0.000376,30]
[341182286,1730557846973,-653.36561612,0.00037603,3]
[341182288,1730557846982,-7983.6353333,0.00037608,3]
[341182290,1730557846996,-10505.25,0.00037608,3]
[341182292,1730557847007,-1927.24220727,0.00037608,3]
[341182294,1730557847018,-6640.01463876,0.00037608,3]
[341182493,1730557972018,-150.0,0.00018123,2]
[341182494,1730557972047,-200.0,0.00019178,2]
[341182495,1730557972076,-150.0,0.00035529,7]
[341182496,1730557972105,-812.0,0.00036751,2]
[341182497,1730557972131,-300.0,0.00037115,2]
[341182498,1730557972162,-4900.31,0.00037183,2]
[341182499,1730557972193,-188.892912,0.000376,7]
[341182500,1730557972224,-151.0,0.000376,7]
[341182501,1730557972252,-70055.30389515,0.00037608,3]
[341182502,1730557972281,-23092.49319285,0.00037616,3]
[341182503,1730557981761,-300.0,0.00019725,2]
[341182504,1730557981785,-795.2,0.00037232,2]
[341182505,1730557981809,-172.63,0.00037451,120]
[341182506,1730557981832,-26426.49571773,0.00037616,3]
[341182507,1730557981856,-4566.18837543,0.0003762,3]
[341182508,1730557981880,-900.11764688,0.00037627,3]
[341182509,1730557981902,-900.11764688,0.00037631,3]
[341182510,1730557981926,-762.59242949,0.0003764,3]
[341182511,1730557981948,-873.64846028,0.00037659,3]
[341182512,1730557981970,-492.01238214,0.00037664,3]
[341182513,1730557981992,-762.59242949,0.0003767,3]
[341182514,1730557982020,-340.77911312,0.00037671,2]
[341182515,1730557982043,-3189.3034675,0.00037674,2]
[341182516,1730557982066,-13532.48394344,0.00037675,3]
[341182517,1730557982089,-45985.83838762,0.00037682,3]
[341182518,1730557994338,-21190.12555602,0.00037682,3]
[341182519,1730557994369,-922.23752955,0.00037691,3]
[341182520,1730557994392,-900.0,0.000377,13]
[341182521,1730557994415,-900.11764688,0.00037712,3]
[341182522,1730557994438,-1304.3873783,0.00037713,2]
[341182523,1730557994559,-3431.06249783,0.00037716,3]
[341182524,1730557994582,-3431.06249783,0.00037716,3]
[341182525,1730557994605,-854.37821279,0.00037718,3]
[341182526,1730557994628,-67066.6286808,0.00037729,3]
[341182527,1730558006378,-700.12,0.0003535,2]
[341182528,1730558006400,-700.12,0.00037614,2]
[341182529,1730558006423,-4117.4331327,0.00037687,2]
[341182530,1730558006447,-94482.3268673,0.00037729,3]
[341182531,1730558029171,-150.0,0.00018123,2]
[341182532,1730558029196,-97178.13614938,0.00037729,3]
[341182533,1730558029220,-2671.86385062,0.00037732,3]
[341182534,1730558042484,-100000.0,0.00037732,3]
[341182535,1730558047939,-100000.0,0.00037732,3]
[341182536,1730558063226,-227.18607541,0.00037712,2]
[341182537,1730558063251,-56055.22784686,0.00037732,3]
[341182538,1730558063276,-43717.58607773,0.00037735,3]
[341182539,1730558270590,164.99,0.00015342,2]
[341182541,1730558739142,-168.04,0.00019178,2]
[341182542,1730558739164,-300.0,0.00019725,2]
[341182543,1730558739187,-420.0,0.00021484,2]
[341182544,1730558739210,-630.1,0.00034768,2]
[341182545,1730558739231,-198.2,0.00036292,2]
[341182546,1730558739254,-500.0,0.00036636,2]
[341182547,1730558739274,-150.0,0.00036646,2]
[341182548,1730558739296,-250.0,0.00036646,2]
[341182549,1730558739317,-363.84,0.00036694,2]
[341182550,1730558739338,-300.0,0.00036833,2]
[341182551,1730558739357,-150.0,0.00036859,7]
[341182552,1730558739378,-198.2,0.00036876,2]
[341182553,1730558739399,-493.72,0.00036977,2]
[341182554,1730558739419,-630.1,0.00037032,2]
[341182555,1730558739439,-200.0,0.00037059,2]
[341182556,1730558739458,-200.0,0.00037068,2]
[341182557,1730558739478,-919.61,0.00037172,2]
[341182558,1730558739498,-198.2,0.00037459,2]
[341182559,1730558739518,-15522.7722,0.00037648,2]
[341182560,1730558739538,-151.45738361,0.00037712,2]
[341182561,1730558739558,-5801.40283285,0.00037735,3]
[341182562,1730558739583,-16041.10088884,0.00037738,3]
[341182563,1730558756110,-253.99539278,0.00018107,2]
[341182564,1730558756132,-261.56,0.00037034,2]
[341182565,1730558756154,-150.01,0.00037712,2]
[341182566,1730558756176,-63503.53445959,0.00037738,3]
[341182567,1730558825090,-300.0,0.00019725,2]
[341182568,1730558825116,-1555.0,0.000204,2]
[341182569,1730558825140,-180.0,0.00021484,2]
[341182570,1730558825161,-165.16,0.00036234,2]
[341182571,1730558825182,-165.16,0.00037049,2]
[341182572,1730558825203,-152.90476721,0.00037712,2]
[341182573,1730558825226,-17566.81072605,0.00037738,3]
[341182574,1730558825246,-922.23752955,0.00037742,3]
[341182575,1730558825266,-2265.8292027,0.00037748,2]
[341182576,1730558825288,-854.37821279,0.00037751,3]
[341182577,1730558825311,-12520.77193903,0.00037765,3]
[341182578,1730558840159,-300.0,0.000376,13]
[341182579,1730558840180,-700.0,0.000377,13]
[341182580,1730558840202,-5070.38355276,0.00037765,3]
[341182581,1730558846143,-246.86,0.00037023,2]
[341182582,1730558846167,-35325.42584325,0.00037765,3]
[341182584,1730558897808,158.67,0.00015342,2]
[341182591,1730559031789,-150.0,0.00018123,2]
[341182592,1730559031802,-300.0,0.00019725,2]
[341182593,1730559031815,-106.68582464,0.00026401,2]
[341182594,1730559031832,-51.98417536,0.00026401,2]
[341182595,1730559031845,-630.16876142,0.00036924,2]
[341182596,1730559032074,-78.75123858,0.00036924,2]
[341182597,1730559032089,-4900.31,0.00036934,2]
[341182598,1730559032103,-300.0,0.00036964,2]
[341182599,1730559032118,-158.67,0.0003746,2]
[341182600,1730559032131,-12001.46262142,0.00037588,3]
[341182601,1730559032147,-979.3711316,0.00037588,3]
[341182602,1730559036092,-713.35,0.00037588,3]
[341182693,1730559038039,-33175.04732467,0.00037588,3]
[341182694,1730559038100,-127208.59846909,0.00037588,3]
[341182695,1730559038174,-1519.2627128,0.00037588,3]
[341182696,1730559038188,-15999.17502404,0.00037588,3]
[341182736,1730559040108,-24133.41090792,0.00037588,3]
[341182742,1730559040154,-47951.41816658,0.00037588,3]
[341182744,1730559040164,-22546.11964778,0.00037595,3]
[341182852,1730559045112,-150.0,0.00037571,2]
[341182853,1730559045122,-1500.0,0.00037574,2]
[341182854,1730559045131,-8252.95395178,0.00037595,3]
[341182855,1730559045140,-1500.0,0.00037596,2]
[341182856,1730559045149,-1374.52033452,0.000376,3]
[341182857,1730559045158,-1546.54823086,0.00037616,2]
[341182858,1730559045167,-72456.78842705,0.00037639,3]
[341182860,1730559045289,-710.28,0.00037639,3]
[341182861,1730559045301,-2640.85609649,0.00037639,3]
[341182862,1730559045314,-4957.20835753,0.00037639,3]
[341182863,1730559045325,-1413.62721852,0.00037639,3]
[341182864,1730559045338,-18006.08945,0.00037639,3]
[341182865,1730559045349,-11194.0760373,0.00037639,3]
[341182866,1730559045833,-153.0,0.00035616,2]
[341182867,1730559045843,-1267.5797,0.00037639,3]
[341182868,1730559045855,-3329.2055292,0.00037639,3]
[341182869,1730559045867,-443.00911857,0.00037639,3]
[341182870,1730559045955,-3698.80056916,0.00037639,3]
[341182871,1730559045967,-1880.15147267,0.00037639,3]
[341182872,1730559045979,-2711.87011664,0.00037639,3]
[341182873,1730559046000,-33576.56527789,0.00037639,3]
[341182874,1730559046012,-1513.65499501,0.00037639,3]
[341182875,1730559046026,-7120.0,0.00037639,3]
[341182876,1730559046037,-258.25999998,0.00037639,3]
[341182877,1730559046154,-4072.02804206,0.00037639,3]
[341182878,1730559046194,-12030.42690838,0.00037639,3]
[341182881,1730559399372,157.4,0.00015342,2]
[341182883,1730559962208,220.7,0.00015342,2]
[341182907,1730560232212,-150.0,0.00018107,2]
[341182908,1730560232222,-200.0,0.00019178,2]
[341182909,1730560232231,-300.0,0.00019725,2]
[341182910,1730560232240,-1512.0,0.000204,2]
[341182911,1730560232249,-250.0,0.00021,2]
[341182912,1730560232258,-2105.1928,0.00021,2]
[341182913,1730560232270,-3279.8004404,0.00021,2]
[341182914,1730560232279,-220.7,0.00021745,2]
[341182915,1730560232288,-300.0,0.00023,2]
[341182916,1730560232298,-269.56,0.00023,2]
[341182917,1730560232307,-350.0,0.00025,2]
[341182918,1730560232316,-2380.25,0.00025,2]
[341182919,1730560232325,-1936.68206454,0.00025,2]
[341182920,1730560232347,-374.73793546,0.00025,2]
[341182921,1730560232357,-150.99,0.00026999,2]
[341182922,1730560232367,-2076.28946639,0.00026999,2]
[341182923,1730560232378,-806.60267748,0.00026999,2]
[341182924,1730560232389,-692.70000002,0.00026999,2]
[341182927,1730560238084,-358.08785611,0.00026999,2]
[341182928,1730560238096,-999.99,0.00026999,2]
[341182929,1730560238106,-300.0,0.00026999,2]
[341182930,1730560238227,-400.0,0.00027,2]
[341182931,1730560238236,-220.7,0.00028147,2]
[341182932,1730560238247,-450.0,0.00029,2]
[341182933,1730560238258,-167.9215,0.0003,2]
[341182934,1730560238268,-167.9215,0.0003,2]
[341182935,1730560238279,-500.0,0.00031,2]
[341182936,1730560238290,-862.75,0.00033063,2]
[341182937,1730560238299,-177.7,0.0003349,2]
[341182938,1730560238309,-200.0,0.00033726,2]
[341182939,1730560238320,-517.42,0.00033726,2]
[341182940,1730560238331,-503.41,0.00033741,120]
[341182941,1730560238344,-6226.1,0.00033744,2]
[341182942,1730560238354,-786.61,0.00033784,2]
[341182943,1730560238364,-1666.00658904,0.00033817,2]
[341182944,1730560238375,-1498.80090485,0.00033825,2]
[341182945,1730560238386,-5165.91909515,0.00033825,2]
[341182946,1730560238396,-1648.96,0.00033825,2]
[341182947,1730560238406,-18559.76,0.00033828,120]
[341182948,1730560238416,-1257.95,0.00033881,2]
[341182949,1730560238427,-250.0,0.00033888,120]
[341182950,1730560238437,-200.0,0.00033888,2]
[341182951,1730560238449,-2168.68,0.00033888,2]
[341182952,1730560238459,-156.46,0.00033896,2]
[341182953,1730560238470,-7373.16,0.00033935,2]
[341182954,1730560238479,-229.25415286,0.00033956,2]
[341182955,1730560238497,-278.09127288,0.00033956,2]
[341182957,1730560240115,-955.72457426,0.00033956,2]
[341182958,1730560240124,-204.97,0.00033966,2]
[341182959,1730560240134,-23900.0,0.00033972,2]
[341182960,1730560240143,-2781.9,0.00034165,2]
[341182961,1730560240153,-69.1280196,0.00034231,2]
[341182962,1730560240247,-127.76132526,0.00034231,2]
[341182963,1730560240258,-957.33,0.00034302,10]
[341182964,1730560240268,-10013.18,0.00034312,61]
[341182965,1730560240278,-491.68,0.00034331,2]
[341182966,1730560240288,-250.0,0.00034361,2]
[341182967,1730560240297,-150.0,0.00034365,7]
[341182968,1730560240307,-237.66,0.00034412,3]
[341182969,1730560240316,-1257.95,0.00034425,2]
[341182970,1730560240326,-250.0,0.00034483,2]
[341182971,1730560240335,-363.21,0.00034506,2]
[341182972,1730560240345,-220.7,0.00034549,2]
[341182973,1730560240355,-162.006,0.0003463,3]
[341182974,1730560240365,-289.23,0.00034778,2]
[341182975,1730560240375,-160.00354026,0.000348,5]
[341182976,1730560240385,-201.92917808,0.000348,2]
[341182977,1730560240395,-209.24,0.00034917,2]
[341182978,1730560240405,-150.0,0.00034938,2]
[341182979,1730560240415,-1165.47,0.00034954,120]
[341182980,1730560240425,-1257.95,0.00034969,2]
[341182981,1730560240436,-169.07,0.00035147,120]
[341182982,1730560240447,-432.86,0.00035174,2]
[341182983,1730560240456,-159.35,0.00035272,120]
[341182984,1730560240469,-189.17,0.00035321,120]
[341182985,1730560240478,-862.75,0.00035327,2]
[341182986,1730560240487,-181.77,0.00035333,2]
[341182987,1730560240497,-2207.35,0.00035339,2]
[341182988,1730560240506,-160.00351791,0.0003535,5]
[341182989,1730560240517,-160.00382565,0.0003535,5]
[341182990,1730560240527,-1257.95,0.00035514,2]
[341182992,1730560240536,-153.0,0.00035616,2]
[341182994,1730560240546,-153.0,0.00035616,2]
[341182996,1730560240556,-153.0,0.00035616,2]
[341182998,1730560240567,-153.0,0.00035616,2]
[341183000,1730560240577,-153.0,0.00035616,2]
[341183002,1730560240586,-153.0,0.00035616,2]
[341183004,1730560240596,-153.0,0.00035616,2]
[341183006,1730560240605,-153.0,0.00035616,2]
[341183009,1730560240616,-91.50014542,0.00035616,2]
[341183011,1730560240632,-61.49985458,0.00035616,2]
[341183013,1730560240643,-153.0,0.00035616,2]
[341183015,1730560240652,-153.0,0.00035616,2]
[341183016,1730560240664,-153.0,0.00035616,2]
[341183017,1730560240674,-153.0,0.00035616,2]
[341183019,1730560240683,-153.0,0.00035616,2]
[341183021,1730560240692,-156.79986809,0.00035697,2]
[341183077,1730560243098,-500.0,0.000348,5]
[341183078,1730560243108,-500.0,0.000348,2]
[341183079,1730560243117,-59.47013191,0.00035697,2]
[341183080,1730560243126,-216.27,0.00035716,2]
[341183081,1730560243136,-216.27,0.00035735,2]
[341183082,1730560243145,-216.27,0.00035754,2]
[341183083,1730560243155,-216.27,0.00035772,2]
[341183084,1730560243164,-161.919,0.0003578,120]
[341183085,1730560243173,-11.30361325,0.00035791,2]
[341183086,1730560243184,-204.96638675,0.00035791,2]
[341183087,1730560243193,-216.27,0.0003581,2]
[341183088,1730560243202,-216.27,0.00035829,2]
[341183089,1730560243211,-216.27,0.00035848,2]
[341183090,1730560243221,-216.27,0.00035866,2]
[341183091,1730560243230,-216.27,0.00035885,2]
[341183092,1730560243240,-216.27,0.00035904,2]
[341183093,1730560243248,-216.27,0.00035923,2]
[341183094,1730560243257,-216.27,0.00035941,2]
[341183095,1730560243266,-216.27,0.0003596,2]
[341183096,1730560243275,-216.27,0.00035979,2]
[341183097,1730560243284,-216.27,0.00035998,2]
[341183098,1730560243293,-196.88934485,0.00036005,2]
[341183099,1730560243302,-216.27,0.00036017,2]
[341183100,1730560243311,-216.27,0.00036035,2]
[341183101,1730560243321,-216.27,0.00036054,2]
[341183102,1730560243329,-1257.95,0.00036058,2]
[341183103,1730560243339,-1000.0,0.0003617,2]
[341183104,1730560243348,-5911.0,0.00036281,2]
[341183106,1730560243357,-13590.0,0.00036281,2]
[341183107,1730560243366,-155.843,0.00036281,2]
[341183108,1730560243375,-1155.0,0.00036281,2]
[341183109,1730560243385,-1088.0,0.00036281,2]
[341183111,1730560243394,-993.35,0.00036361,2]
[341183112,1730560243403,-166.15,0.00036588,2]
[341183113,1730560243412,-1257.95,0.00036603,2]
[341183114,1730560243421,-209.24,0.00036663,2]
[341183115,1730560243430,-173.35116725,0.00036849,46]
[341183116,1730560243439,-566.995,0.00036849,46]
[341183117,1730560243449,-1257.95,0.00037147,2]
[341183118,1730560243458,-300.0,0.000375,13]
[341183119,1730560243468,-862.75,0.00037591,2]
[341183120,1730560243478,-700.0,0.000376,13]
[341183121,1730560243488,-80400.61904167,0.00037639,3]
[341183122,1730560243497,-1500.0,0.00037647,2]
[341183123,1730560243506,-1374.52033452,0.00037649,3]
[341183124,1730560243516,-30799.07359956,0.00037659,3]
[341183125,1730560243525,-1456.55216839,0.00037661,3]
[341183126,1730560243534,-1210.24525232,0.00037662,15]
[341183127,1730560243545,-153.60284394,0.00037663,2]
[341183128,1730560243555,-685.43,0.00037681,3]
[341183129,1730560243564,-30799.07359956,0.00037684,3]
[341183130,1730560243574,-1257.95,0.00037691,2]
[341183131,1730560243583,-1456.55216839,0.00037698,3]
[341183132,1730560243592,-398.0,0.000377,23]
[341183133,1730560243602,-1100.0,0.000377,13]
[341183134,1730560243611,-1456.55216839,0.00037726,3]
[341183135,1730560243621,-30799.07359956,0.00037744,3]
[341183136,1730560243630,-1374.52033452,0.00037745,3]
[341183137,1730560243639,-189.32172951,0.00037747,2]
[341183138,1730560243649,-797.77,0.00037752,10]
[341183139,1730560243661,-1456.55216839,0.0003776,3]
[341183140,1730560243672,-5390.7688366,0.00037762,2]
[341183141,1730560243682,-321.2996356,0.00037762,2]
[341183142,1730560243691,-5973.0578058,0.00037762,2]
[341183143,1730560243702,-7081.2348759,0.00037762,2]
[341183144,1730560243711,-1527.4616071,0.00037762,2]
[341183145,1730560243722,-2000.0,0.00037765,2]
[341183146,1730560243731,-200.0,0.00037765,2]
[341183147,1730560243744,-177860.10048503,0.0003777,3]
[341183148,1730560243757,-5148.01877148,0.0003777,3]
[341183149,1730560243771,-11988.50136,0.0003777,3]
[341183150,1730560243783,-255.60155116,0.0003777,3]
[341183156,1730560245982,-1133.26769604,0.00037015,5]
[341183157,1730560245991,-68076.73230396,0.0003777,3]
[341183158,1730560246223,-352.14188649,0.0003777,3]
[341183159,1730560246232,-4566.18837543,0.00037779,3]
[341183160,1730560246242,-319.38445996,0.00037779,2]
[341183161,1730560246251,-196.88934485,0.00037779,2]
[341183162,1730560246260,-220.52239436,0.0003778,12]
[341183163,1730560246269,-4300.1253264,0.00037786,3]
[341183164,1730560246279,-12286.07236065,0.0003779,3]
[341183165,1730560246288,-4566.18837543,0.00037791,3]
[341183166,1730560246299,-42252.48747642,0.00037796,3]
[341183167,1730560246311,-6985.08451818,0.00037796,3]
[341183173,1730560989748,164.99,0.00015342,2]
[341183175,1730561108875,68935.01,0.00016,2]
[341183176,1730561108899,7829798.3051036,0.00016,2]
[341183177,1730561109340,-296.05127586,0.00016,2]
[341183178,1730561110138,-158.91,0.00016,2]
[341183179,1730561110698,-150.0,0.00016,2]
[341183180,1730561111430,-150.0,0.00016,2]
[341183181,1730561111949,-150.0,0.00016,2]
[341183182,1730561112204,273.06,0.0001599,3]
[341183183,1730561112507,-150.0,0.00016,2]
[341183184,1730561117316,-150.0,0.00016,2]
[341183185,1730561117986,-150.0,0.00016,2]
[341183186,1730561118698,-150.0,0.00016,2]
[341183187,1730561119300,-150.0,0.00016,2]
[341183188,1730561119902,-150.0,0.00016,2]
[341183189,1730561120661,-150.0,0.00016,2]
[341183190,1730561121232,-150.0,0.00016,2]
[341183191,1730561121765,-150.0,0.00016,2]